[Event "*** Titled Tuesday Blitz"]
[Site "Chess.com"]
[Date "2018.09.04"]
[Round "3"]
[White "chito89"]
[Black "michaelk123"]
[Result "0-1"]
[WhiteElo "2698"]
[BlackElo "2490"]
[TimeControl "180+2"]
[EndTime "14:12:08 PDT"]
[Termination "michaelk123 won on time"]

1. e4 {[%clk 0:03:01.9]} 1... c6 {[%clk 0:02:37.6]} 2. d4 {[%clk 0:03:01.9]}
2... d5 {[%clk 0:02:38.5]} 3. exd5 {[%clk 0:03:03]} 3... cxd5 {[%clk 0:02:38.9]}
4. c4 {[%clk 0:03:04.1]} 4... Nf6 {[%clk 0:02:39.7]} 5. Nc3 {[%clk 0:03:05.1]}
5... e6 {[%clk 0:02:38.7]} 6. Nf3 {[%clk 0:03:05.4]} 6... Nc6 {[%clk 0:02:35.3]}
7. Bd3 {[%clk 0:03:03]} 7... dxc4 {[%clk 0:02:35.5]} 8. Bxc4 {[%clk 0:03:04.1]}
8... Be7 {[%clk 0:02:36.8]} 9. O-O {[%clk 0:03:04.9]} 9... O-O {[%clk
0:02:38.2]} 10. h3 {[%clk 0:03:05.9]} 10... b6 {[%clk 0:02:39.1]} 11. Bf4 {[%clk
0:02:46.2]} 11... Bb7 {[%clk 0:02:38.4]} 12. Rc1 {[%clk 0:02:46.3]} 12... Rc8
{[%clk 0:02:38.7]} 13. Bb3 {[%clk 0:02:35.9]} 13... Nb4 {[%clk 0:02:30.7]} 14.
a3 {[%clk 0:02:22.1]} 14... Nbd5 {[%clk 0:02:28]} 15. Nxd5 {[%clk 0:02:15.5]}
15... Bxd5 {[%clk 0:02:24.4]} 16. Rxc8 {[%clk 0:01:54.4]} 16... Qxc8 {[%clk
0:02:26.3]} 17. Re1 {[%clk 0:01:52.3]} 17... Qb7 {[%clk 0:02:19.9]} 18. Bxd5
{[%clk 0:01:47.3]} 18... Nxd5 {[%clk 0:02:18.4]} 19. Be5 {[%clk 0:01:41]} 19...
Rc8 {[%clk 0:02:17.1]} 20. Qd3 {[%clk 0:01:37.3]} 20... Qc6 {[%clk 0:02:13.8]}
21. Re2 {[%clk 0:01:23]} 21... Bf6 {[%clk 0:01:59.7]} 22. g3 {[%clk 0:01:04.1]}
22... Be7 {[%clk 0:01:47.2]} 23. g4 {[%clk 0:00:32.3]} 23... Bf6 {[%clk
0:01:28.4]} 24. Bg3 {[%clk 0:00:32.7]} 24... Qc4 {[%clk 0:01:28.8]} 25. Qxc4
{[%clk 0:00:28.2]} 25... Rxc4 {[%clk 0:01:29.3]} 26. Rd2 {[%clk 0:00:29.6]}
26... g5 {[%clk 0:01:21.7]} 27. h4 {[%clk 0:00:21.4]} 27... h6 {[%clk 0:01:17]}
28. hxg5 {[%clk 0:00:22.4]} 28... hxg5 {[%clk 0:01:17.9]} 29. Be5 {[%clk
0:00:21.3]} 29... Bxe5 {[%clk 0:01:15.2]} 30. Nxe5 {[%clk 0:00:22.4]} 30... Rc1+
{[%clk 0:01:11.1]} 31. Kh2 {[%clk 0:00:21.5]} 31... Kg7 {[%clk 0:01:07.4]} 32.
Nf3 {[%clk 0:00:21.1]} 32... f6 {[%clk 0:01:05.2]} 33. Re2 {[%clk 0:00:19.8]}
33... Kf7 {[%clk 0:01:05.9]} 34. Rd2 {[%clk 0:00:20.3]} 34... Ke7 {[%clk
0:01:05.8]} 35. Kg3 {[%clk 0:00:19.9]} 35... Kd6 {[%clk 0:01:07]} 36. Re2 {[%clk
0:00:19.4]} 36... Nf4 {[%clk 0:01:05.2]} 37. Rd2 {[%clk 0:00:20.6]} 37... Rh1
{[%clk 0:01:05.5]} 38. Nh2 {[%clk 0:00:21.6]} 38... Kd5 {[%clk 0:00:59.2]} 39.
Rc2 {[%clk 0:00:08.3]} 39... Rg1+ {[%clk 0:00:50.8]} 40. Kf3 {[%clk 0:00:09.1]}
40... Rd1 {[%clk 0:00:51]} 41. Rc3 {[%clk 0:00:05.2]} 41... Kxd4 {[%clk
0:00:49.2]} 42. Kg3 {[%clk 0:00:02.2]} 42... Ne2+ {[%clk 0:00:49.5]} 0-1

[Event "*** Titled Tuesday Blitz"]
[Site "Chess.com"]
[Date "2018.09.04"]
[Round "3"]
[White "northridgehawk"]
[Black "Spring199"]
[Result "0-1"]
[WhiteElo "2109"]
[BlackElo "2217"]
[TimeControl "180+2"]
[EndTime "14:12:11 PDT"]
[Termination "Spring199 won by resignation"]

1. e4 {[%clk 0:03:01.8]} 1... e5 {[%clk 0:03:00.1]} 2. Nf3 {[%clk 0:03:00.6]}
2... Nc6 {[%clk 0:03:00.8]} 3. Bb5 {[%clk 0:02:58.4]} 3... a6 {[%clk 0:03:01.4]}
4. Ba4 {[%clk 0:02:52]} 4... Nf6 {[%clk 0:03:01.9]} 5. O-O {[%clk 0:02:31.9]}
5... Be7 {[%clk 0:03:00]} 6. d3 {[%clk 0:02:30.8]} 6... b5 {[%clk 0:02:57.1]} 7.
Bb3 {[%clk 0:02:27.6]} 7... O-O {[%clk 0:02:57.8]} 8. Nc3 {[%clk 0:02:28.6]}
8... d6 {[%clk 0:02:55.3]} 9. h3 {[%clk 0:02:27.3]} 9... Be6 {[%clk 0:02:47.8]}
10. Nd5 {[%clk 0:02:26.6]} 10... Na5 {[%clk 0:02:29.9]} 11. Nxe7+ {[%clk
0:02:24.9]} 11... Qxe7 {[%clk 0:02:30.2]} 12. Bxe6 {[%clk 0:02:24.9]} 12... fxe6
{[%clk 0:02:30.6]} 13. Re1 {[%clk 0:02:26.1]} 13... h6 {[%clk 0:02:22.8]} 14. c3
{[%clk 0:02:20.6]} 14... c5 {[%clk 0:02:22.2]} 15. a4 {[%clk 0:02:21.5]} 15...
Nc6 {[%clk 0:02:19]} 16. Be3 {[%clk 0:02:22.4]} 16... b4 {[%clk 0:02:16.2]} 17.
a5 {[%clk 0:02:21.2]} 17... Rab8 {[%clk 0:02:13.4]} 18. Nd2 {[%clk 0:02:17.2]}
18... bxc3 {[%clk 0:02:07.3]} 19. bxc3 {[%clk 0:02:19.1]} 19... Rb2 {[%clk
0:02:07.5]} 20. Nc4 {[%clk 0:02:19.8]} 20... Rb5 {[%clk 0:02:04.1]} 21. Qe2
{[%clk 0:02:11.9]} 21... d5 {[%clk 0:02:03.1]} 22. Nd2 {[%clk 0:01:29.1]} 22...
d4 {[%clk 0:02:00]} 23. c4 {[%clk 0:01:21.2]} 23... Rb2 {[%clk 0:01:59.7]} 24.
Bxh6 {[%clk 0:01:17.8]} 24... gxh6 {[%clk 0:01:57.7]} 25. Rab1 {[%clk
0:01:17.3]} 25... Rfb8 {[%clk 0:01:55.9]} 26. Qf3 {[%clk 0:01:09.8]} 26... Rxd2
{[%clk 0:01:51.7]} 27. Rxb8+ {[%clk 0:01:10.2]} 27... Nxb8 {[%clk 0:01:51.8]}
28. Qg3+ {[%clk 0:01:12.1]} 28... Kh7 {[%clk 0:01:40.8]} 29. Qxe5 {[%clk
0:01:13]} 29... Nc6 {[%clk 0:01:36.8]} 30. Qg3 {[%clk 0:01:08.2]} 30... Qg7
{[%clk 0:01:33.3]} 31. Qf4 {[%clk 0:01:05.1]} 31... Rxd3 {[%clk 0:01:31.9]} 32.
Rb1 {[%clk 0:01:04.5]} 32... Nh5 {[%clk 0:01:20.9]} 33. Qd6 {[%clk 0:01:01.6]}
33... Ne5 {[%clk 0:01:16.1]} 34. Kf1 {[%clk 0:00:22.9]} 34... Nf4 {[%clk
0:01:14]} 35. g3 {[%clk 0:00:22.9]} 35... Nxh3 {[%clk 0:00:55.4]} 36. Qxe6
{[%clk 0:00:23.5]} 36... Ng5 {[%clk 0:00:52.3]} 37. Qf5+ {[%clk 0:00:24.2]}
37... Ng6 {[%clk 0:00:51.7]} 38. Rb6 {[%clk 0:00:25.3]} 38... Rf3 {[%clk
0:00:44.6]} 39. Qe5 {[%clk 0:00:20.7]} 39... Qxe5 {[%clk 0:00:43.3]} 0-1

[Event "*** Titled Tuesday Blitz"]
[Site "Chess.com"]
[Date "2018.09.04"]
[Round "3"]
[White "PulpanJ"]
[Black "Sven_Tica"]
[Result "1-0"]
[WhiteElo "2445"]
[BlackElo "2630"]
[TimeControl "180+2"]
[EndTime "14:12:12 PDT"]
[Termination "PulpanJ won by resignation"]

1. e4 {[%clk 0:02:59.8]} 1... c5 {[%clk 0:03:01.2]} 2. Nf3 {[%clk 0:02:53.3]}
2... Nf6 {[%clk 0:03:01.9]} 3. e5 {[%clk 0:02:45.7]} 3... Nd5 {[%clk 0:03:02.7]}
4. b3 {[%clk 0:02:45.7]} 4... Nc6 {[%clk 0:03:01.8]} 5. Bb2 {[%clk 0:02:37.4]}
5... g6 {[%clk 0:03:02.7]} 6. Bc4 {[%clk 0:02:30]} 6... Nc7 {[%clk 0:03:03.5]}
7. Ng5 {[%clk 0:02:20.7]} 7... e6 {[%clk 0:03:04.7]} 8. Ne4 {[%clk 0:02:16]}
8... Bg7 {[%clk 0:02:53.2]} 9. Nd6+ {[%clk 0:02:13.3]} 9... Kf8 {[%clk
0:02:54.1]} 10. f4 {[%clk 0:02:02.3]} 10... b5 {[%clk 0:02:36.1]} 11. Be2 {[%clk
0:02:00.2]} 11... Rb8 {[%clk 0:02:18.2]} 12. c3 {[%clk 0:01:52.6]} 12... Nd5
{[%clk 0:02:10.8]} 13. O-O {[%clk 0:01:52.8]} 13... a6 {[%clk 0:02:09]} 14. c4
{[%clk 0:01:47.6]} 14... bxc4 {[%clk 0:02:08.6]} 15. Bxc4 {[%clk 0:01:46.6]}
15... Nde7 {[%clk 0:02:06.6]} 16. Nc3 {[%clk 0:01:46.4]} 16... Nf5 {[%clk
0:02:06]} 17. Nce4 {[%clk 0:01:43.9]} 17... Ncd4 {[%clk 0:02:06.9]} 18. Bxd4
{[%clk 0:01:39.6]} 18... Nxd4 {[%clk 0:02:01.9]} 19. Ng5 {[%clk 0:01:38.1]}
19... f6 {[%clk 0:01:40.8]} 20. Ngf7 {[%clk 0:01:33]} 20... Qe7 {[%clk
0:01:42.1]} 21. Nxh8 {[%clk 0:01:33.8]} 21... Bxh8 {[%clk 0:01:42.9]} 22. Qg4
{[%clk 0:01:27.6]} 22... f5 {[%clk 0:01:43.5]} 23. Qh3 {[%clk 0:01:22.3]} 23...
h5 {[%clk 0:01:39.2]} 24. Nxc8 {[%clk 0:01:20.3]} 24... Rxc8 {[%clk 0:01:39.5]}
25. Bxa6 {[%clk 0:01:22.2]} 25... Ra8 {[%clk 0:01:38.9]} 26. Bc4 {[%clk
0:01:23.6]} 26... d6 {[%clk 0:01:38.6]} 27. exd6 {[%clk 0:01:22.2]} 27... Qxd6
{[%clk 0:01:39.4]} 28. Kh1 {[%clk 0:01:24.1]} 28... Bf6 {[%clk 0:01:36]} 29. a4
{[%clk 0:01:17.1]} 29... Kg7 {[%clk 0:01:36.8]} 30. Rae1 {[%clk 0:01:16.7]}
30... Re8 {[%clk 0:01:33.7]} 31. a5 {[%clk 0:01:15.5]} 31... Nc2 {[%clk
0:01:29.8]} 32. Re2 {[%clk 0:01:14.1]} 32... Nd4 {[%clk 0:01:29.1]} 33. Re3
{[%clk 0:01:14.7]} 33... Nc2 {[%clk 0:01:29.6]} 34. Rd3 {[%clk 0:01:10.5]} 34...
Qc7 {[%clk 0:01:28.1]} 35. a6 {[%clk 0:01:10.2]} 35... Nb4 {[%clk 0:01:28.9]}
36. Rg3 {[%clk 0:01:10]} 36... h4 {[%clk 0:01:29.5]} 37. Re3 {[%clk 0:01:09.7]}
37... Qb6 {[%clk 0:01:27.5]} 38. Rfe1 {[%clk 0:01:08]} 38... e5 {[%clk
0:01:19.1]} 39. fxe5 {[%clk 0:01:04.4]} 39... Bg5 {[%clk 0:01:20.4]} 40. R3e2
{[%clk 0:01:03]} 40... Nxa6 {[%clk 0:01:21.4]} 41. Bxa6 {[%clk 0:00:55.1]} 41...
Qxa6 {[%clk 0:01:22.2]} 42. Qc3 {[%clk 0:00:55.7]} 42... Re6 {[%clk 0:01:22.6]}
43. Qc4 {[%clk 0:00:54.9]} 43... Qc6 {[%clk 0:01:23.9]} 44. b4 {[%clk
0:00:51.2]} 44... h3 {[%clk 0:01:21.4]} 45. Qxc5 {[%clk 0:00:52.5]} 45... hxg2+
{[%clk 0:01:22]} 46. Rxg2 {[%clk 0:00:54.4]} 46... Qb7 {[%clk 0:01:17]} 47. d4
{[%clk 0:00:45.9]} 47... Be7 {[%clk 0:01:11.4]} 48. Qc4 {[%clk 0:00:39.2]} 48...
Rc6 {[%clk 0:01:11.2]} 49. Qd5 {[%clk 0:00:40.3]} 49... Bxb4 {[%clk 0:01:01]}
50. Reg1 {[%clk 0:00:39]} 50... Qb6 {[%clk 0:00:57.6]} 51. Qd7+ {[%clk
0:00:38.3]} 51... Kh6 {[%clk 0:00:58.1]} 52. d5 {[%clk 0:00:39.4]} 1-0

[Event "*** Titled Tuesday Blitz"]
[Site "Chess.com"]
[Date "2018.09.04"]
[Round "3"]
[White "oskariot"]
[Black "Faqade"]
[Result "1-0"]
[WhiteElo "2479"]
[BlackElo "2480"]
[TimeControl "180+2"]
[EndTime "14:12:21 PDT"]
[Termination "oskariot won by resignation"]

1. c4 {[%clk 0:02:53.5]} 1... Nf6 {[%clk 0:03:00.5]} 2. g3 {[%clk 0:02:54.4]}
2... g6 {[%clk 0:03:02.1]} 3. Bg2 {[%clk 0:02:55]} 3... Bg7 {[%clk 0:03:04]} 4.
Nc3 {[%clk 0:02:55.4]} 4... O-O {[%clk 0:03:05.5]} 5. e4 {[%clk 0:02:50.2]} 5...
c5 {[%clk 0:03:02.9]} 6. Nge2 {[%clk 0:02:51]} 6... Nc6 {[%clk 0:03:04.2]} 7. d3
{[%clk 0:02:48.3]} 7... Ne8 {[%clk 0:03:05.4]} 8. Be3 {[%clk 0:02:46.2]} 8... d6
{[%clk 0:03:04.4]} 9. O-O {[%clk 0:02:38.7]} 9... Nc7 {[%clk 0:03:05.1]} 10. d4
{[%clk 0:02:39.3]} 10... cxd4 {[%clk 0:03:04.8]} 11. Nxd4 {[%clk 0:02:41.2]}
11... Ne6 {[%clk 0:03:05.7]} 12. Nde2 {[%clk 0:02:41.7]} 12... Nc5 {[%clk
0:03:02.6]} 13. Qd2 {[%clk 0:02:29.8]} 13... Na5 {[%clk 0:02:56.6]} 14. b3
{[%clk 0:02:20.6]} 14... Naxb3 {[%clk 0:02:56.2]} 15. axb3 {[%clk 0:02:19.8]}
15... Nxb3 {[%clk 0:02:58.1]} 16. Qd3 {[%clk 0:02:19.3]} 16... Nxa1 {[%clk
0:03:00]} 17. Rxa1 {[%clk 0:02:20.3]} 17... a5 {[%clk 0:02:56.3]} 18. Ra2 {[%clk
0:01:44.5]} 18... Be6 {[%clk 0:02:54]} 19. Nd4 {[%clk 0:01:24.1]} 19... Bd7
{[%clk 0:02:52.3]} 20. Ndb5 {[%clk 0:01:16.3]} 20... a4 {[%clk 0:02:39.2]} 21.
Rxa4 {[%clk 0:01:03.7]} 21... Bxb5 {[%clk 0:02:06.7]} 22. cxb5 {[%clk
0:00:48.6]} 22... Bxc3 {[%clk 0:01:48]} 23. Rxa8 {[%clk 0:00:47.4]} 23... Qxa8
{[%clk 0:01:49.9]} 24. Qxc3 {[%clk 0:00:48.6]} 24... Rc8 {[%clk 0:01:51.8]} 25.
Qd3 {[%clk 0:00:32.1]} 25... Qa1+ {[%clk 0:01:43.4]} 26. Bf1 {[%clk 0:00:33]}
26... Rc1 {[%clk 0:01:44.8]} 27. Bxc1 {[%clk 0:00:33.4]} 27... Qxc1 {[%clk
0:01:44.6]} 28. Qd5 {[%clk 0:00:33.8]} 28... Qc7 {[%clk 0:01:39.6]} 29. h4
{[%clk 0:00:30.3]} 29... h5 {[%clk 0:01:39.6]} 30. Kg2 {[%clk 0:00:28.5]} 30...
Qb6 {[%clk 0:01:39.6]} 31. Be2 {[%clk 0:00:25.1]} 31... e6 {[%clk 0:01:39.4]}
32. Qc4 {[%clk 0:00:24.6]} 32... Kg7 {[%clk 0:01:40.9]} 33. Qc3+ {[%clk
0:00:24.8]} 33... Kg8 {[%clk 0:01:42.3]} 34. Qc8+ {[%clk 0:00:25.9]} 34... Kg7
{[%clk 0:01:42.9]} 35. Qc3+ {[%clk 0:00:27]} 35... Kg8 {[%clk 0:01:43.6]} 36.
Bd3 {[%clk 0:00:28.1]} 36... Kh7 {[%clk 0:01:41.1]} 37. Qf6 {[%clk 0:00:27.7]}
37... Kg8 {[%clk 0:01:40.5]} 38. Bc4 {[%clk 0:00:25.8]} 38... Qc5 {[%clk
0:01:36.8]} 39. Bxe6 {[%clk 0:00:25.8]} 39... fxe6 {[%clk 0:01:38.1]} 40. Qxg6+
{[%clk 0:00:27.3]} 40... Kf8 {[%clk 0:01:39.1]} 41. Qf6+ {[%clk 0:00:27.7]}
41... Ke8 {[%clk 0:01:38.3]} 42. Qxe6+ {[%clk 0:00:28.4]} 42... Kd8 {[%clk
0:01:39.8]} 43. Qd5 {[%clk 0:00:24.2]} 43... b6 {[%clk 0:01:36.2]} 44. Qxc5
{[%clk 0:00:17.9]} 44... dxc5 {[%clk 0:01:38.1]} 45. f4 {[%clk 0:00:13.4]} 45...
Ke7 {[%clk 0:01:38.7]} 46. Kf3 {[%clk 0:00:14.7]} 46... Ke6 {[%clk 0:01:39.6]}
47. g4 {[%clk 0:00:11.7]} 47... Kf6 {[%clk 0:01:34.4]} 48. gxh5 {[%clk
0:00:12.5]} 48... Kg7 {[%clk 0:01:35.1]} 49. Ke3 {[%clk 0:00:12.8]} 49... Kh6
{[%clk 0:01:36.5]} 50. e5 {[%clk 0:00:14.1]} 50... Kxh5 {[%clk 0:01:38]} 51. e6
{[%clk 0:00:14.8]} 51... Kg6 {[%clk 0:01:39.7]} 52. f5+ {[%clk 0:00:15.9]} 52...
Kf6 {[%clk 0:01:41.6]} 53. h5 {[%clk 0:00:17]} 53... Kxf5 {[%clk 0:01:41.2]} 54.
e7 {[%clk 0:00:17.9]} 54... Kg5 {[%clk 0:01:42.7]} 55. e8=Q {[%clk 0:00:18.9]}
1-0

[Event "*** Titled Tuesday Blitz"]
[Site "Chess.com"]
[Date "2018.09.04"]
[Round "3"]
[White "Xeniya2005"]
[Black "aa175"]
[Result "1-0"]
[WhiteElo "1995"]
[BlackElo "1954"]
[TimeControl "180+2"]
[EndTime "14:12:28 PDT"]
[Termination "Xeniya2005 won by checkmate"]

1. e4 {[%clk 0:03:01.8]} 1... c5 {[%clk 0:02:58.6]} 2. Nf3 {[%clk 0:03:02.3]}
2... Nc6 {[%clk 0:02:57.8]} 3. d4 {[%clk 0:03:02.9]} 3... cxd4 {[%clk
0:02:59.7]} 4. Nxd4 {[%clk 0:03:03.2]} 4... e5 {[%clk 0:03:01.1]} 5. Nb5 {[%clk
0:03:02.5]} 5... d6 {[%clk 0:02:56.9]} 6. N1c3 {[%clk 0:03:03]} 6... a6 {[%clk
0:02:56.7]} 7. Na3 {[%clk 0:03:03.3]} 7... b5 {[%clk 0:02:56.6]} 8. Nd5 {[%clk
0:03:03.5]} 8... Nf6 {[%clk 0:02:55.9]} 9. Bg5 {[%clk 0:03:02.7]} 9... Be7
{[%clk 0:02:55.6]} 10. Bxf6 {[%clk 0:03:03.2]} 10... Bxf6 {[%clk 0:02:56.9]} 11.
c3 {[%clk 0:03:04.2]} 11... O-O {[%clk 0:02:55.4]} 12. Be2 {[%clk 0:03:02.2]}
12... Be6 {[%clk 0:02:53]} 13. Nc2 {[%clk 0:03:02.5]} 13... Bxd5 {[%clk
0:02:50.8]} 14. Qxd5 {[%clk 0:03:01]} 14... Rc8 {[%clk 0:02:45]} 15. Rd1 {[%clk
0:02:59.7]} 15... Qa5 {[%clk 0:02:44.3]} 16. a3 {[%clk 0:02:55.9]} 16... Nd4
{[%clk 0:02:42.1]} 17. Nxd4 {[%clk 0:02:34.9]} 17... exd4 {[%clk 0:02:41]} 18.
O-O {[%clk 0:02:29.8]} 18... dxc3 {[%clk 0:02:40]} 19. bxc3 {[%clk 0:02:29.2]}
19... Rxc3 {[%clk 0:02:36.3]} 20. Qxd6 {[%clk 0:02:28.6]} 20... Qxa3 {[%clk
0:02:36.4]} 21. Qd7 {[%clk 0:02:23.8]} 21... b4 {[%clk 0:02:18.5]} 22. Ra1
{[%clk 0:02:19]} 22... Qb2 {[%clk 0:02:16.9]} 23. Bxa6 {[%clk 0:02:17.4]} 23...
Ra3 {[%clk 0:02:14.8]} 24. Rab1 {[%clk 0:02:17.1]} 24... Qc3 {[%clk 0:01:49.7]}
25. Rfc1 {[%clk 0:02:05.2]} 25... Qd4 {[%clk 0:01:13.7]} 26. Qxd4 {[%clk
0:01:38.3]} 26... Bxd4 {[%clk 0:01:11.4]} 27. Bc4 {[%clk 0:01:23.1]} 27... Rc3
{[%clk 0:01:06.8]} 28. Bb3 {[%clk 0:01:10.9]} 28... Rfc8 {[%clk 0:01:05.3]} 29.
Rd1 {[%clk 0:01:10.2]} 29... g6 {[%clk 0:00:47.8]} 30. Rxd4 {[%clk 0:01:07.7]}
30... Rxb3 {[%clk 0:00:45.8]} 31. Rbd1 {[%clk 0:01:05.1]} 31... Kg7 {[%clk
0:00:43.3]} 32. g3 {[%clk 0:01:04.8]} 32... Rc2 {[%clk 0:00:41.2]} 33. e5 {[%clk
0:00:41.4]} 33... Rbb2 {[%clk 0:00:34]} 34. Rf4 {[%clk 0:00:40.9]} 34... Re2
{[%clk 0:00:13.9]} 35. Rd7 {[%clk 0:00:33.5]} 35... b3 {[%clk 0:00:04.2]} 36.
Rfxf7+ {[%clk 0:00:34.3]} 36... Kh6 {[%clk 0:00:05.3]} 37. Rxh7+ {[%clk
0:00:27.1]} 37... Kg5 {[%clk 0:00:06]} 38. Rdf7 {[%clk 0:00:24.3]} 38... Rb1+
{[%clk 0:00:03]} 39. Kg2 {[%clk 0:00:24.8]} 39... b2 {[%clk 0:00:02.9]} 40. h4+
{[%clk 0:00:25.5]} 40... Kg4 {[%clk 0:00:03.9]} 41. Rf4# {[%clk 0:00:26.5]} 1-0

[Event "*** Titled Tuesday Blitz"]
[Site "Chess.com"]
[Date "2018.09.04"]
[Round "3"]
[White "tteshan"]
[Black "MikeSailer"]
[Result "1-0"]
[WhiteElo "2037"]
[BlackElo "2088"]
[TimeControl "180+2"]
[EndTime "14:12:38 PDT"]
[Termination "tteshan won on time"]

1. e4 {[%clk 0:03:01.9]} 1... d5 {[%clk 0:03:00.2]} 2. exd5 {[%clk 0:03:02.7]}
2... Qxd5 {[%clk 0:03:00.6]} 3. Nc3 {[%clk 0:03:04.3]} 3... Qd8 {[%clk
0:03:01.4]} 4. d4 {[%clk 0:03:05.7]} 4... Nf6 {[%clk 0:03:02.6]} 5. Nf3 {[%clk
0:03:04]} 5... Bg4 {[%clk 0:03:02.3]} 6. h3 {[%clk 0:03:01.9]} 6... Bh5 {[%clk
0:03:03.1]} 7. g4 {[%clk 0:02:56.5]} 7... Bg6 {[%clk 0:03:03.9]} 8. Ne5 {[%clk
0:02:56.1]} 8... e6 {[%clk 0:03:03.2]} 9. Bg2 {[%clk 0:02:55.4]} 9... c6 {[%clk
0:03:00.4]} 10. h4 {[%clk 0:02:48.3]} 10... Bb4 {[%clk 0:02:59.7]} 11. h5 {[%clk
0:02:34.1]} 11... Be4 {[%clk 0:02:58.3]} 12. f3 {[%clk 0:02:34.5]} 12... Bd5
{[%clk 0:02:55.3]} 13. O-O {[%clk 0:02:29]} 13... Bxc3 {[%clk 0:02:55.2]} 14.
bxc3 {[%clk 0:02:29.5]} 14... Nfd7 {[%clk 0:02:08.5]} 15. c4 {[%clk 0:02:20.6]}
15... Nxe5 {[%clk 0:02:08.5]} 16. cxd5 {[%clk 0:02:22.2]} 16... Qb6 {[%clk
0:01:49.7]} 17. Kh1 {[%clk 0:02:15.4]} 17... Ned7 {[%clk 0:01:29.7]} 18. dxe6
{[%clk 0:02:15.3]} 18... fxe6 {[%clk 0:01:30.8]} 19. Re1 {[%clk 0:02:16.7]}
19... O-O {[%clk 0:01:23.1]} 20. Rxe6 {[%clk 0:02:15.4]} 20... Nf6 {[%clk
0:01:21.8]} 21. Ba3 {[%clk 0:02:13]} 21... Rd8 {[%clk 0:01:22.1]} 22. c3 {[%clk
0:02:12.7]} 22... Nbd7 {[%clk 0:01:17.9]} 23. Rb1 {[%clk 0:02:11.3]} 23... Qa6
{[%clk 0:01:08.8]} 24. Qb3 {[%clk 0:02:08.5]} 24... Kh8 {[%clk 0:01:05.7]} 25.
Be7 {[%clk 0:02:06.3]} 25... Re8 {[%clk 0:00:54]} 26. Bf1 {[%clk 0:01:37.3]}
26... Qa5 {[%clk 0:00:49.9]} 27. Bb4 {[%clk 0:01:27.3]} 27... Qg5 {[%clk
0:00:49.8]} 28. Rxe8+ {[%clk 0:01:22.9]} 28... Rxe8 {[%clk 0:00:48.9]} 29. Qc2
{[%clk 0:01:14.3]} 29... Nb6 {[%clk 0:00:36.3]} 30. Bd6 {[%clk 0:01:09.9]} 30...
Nbd5 {[%clk 0:00:32.4]} 31. Be5 {[%clk 0:01:04.7]} 31... Ne3 {[%clk 0:00:21.7]}
32. Qh2 {[%clk 0:00:59.3]} 32... Nxf1 {[%clk 0:00:20.9]} 33. Rxf1 {[%clk
0:00:58.8]} 33... Nd5 {[%clk 0:00:21.8]} 34. c4 {[%clk 0:00:54.4]} 34... Ne3
{[%clk 0:00:20.4]} 35. Re1 {[%clk 0:00:50.1]} 35... Rf8 {[%clk 0:00:15.9]} 36.
f4 {[%clk 0:00:43.6]} 36... Nxg4 {[%clk 0:00:09.3]} 37. fxg5 {[%clk 0:00:41.6]}
37... Nxh2 {[%clk 0:00:09.2]} 38. Bxh2 {[%clk 0:00:40.7]} 38... Kg8 {[%clk
0:00:09]} 39. Kg2 {[%clk 0:00:40.7]} 39... Rf5 {[%clk 0:00:09.2]} 40. Re5 {[%clk
0:00:37.6]} 1-0

[Event "*** Titled Tuesday Blitz"]
[Site "Chess.com"]
[Date "2018.09.04"]
[Round "3"]
[White "Saitama_Hero"]
[Black "Rashad_Zeynalli"]
[Result "0-1"]
[WhiteElo "2188"]
[BlackElo "2358"]
[TimeControl "180+2"]
[EndTime "14:12:41 PDT"]
[Termination "Rashad_Zeynalli won on time"]

1. d4 {[%clk 0:03:01.9]} 1... f5 {[%clk 0:03:00.2]} 2. Qd3 {[%clk 0:02:55.2]}
2... d5 {[%clk 0:03:00.3]} 3. g4 {[%clk 0:02:54.5]} 3... fxg4 {[%clk 0:02:58.6]}
4. h3 {[%clk 0:02:54.7]} 4... Nf6 {[%clk 0:02:57.1]} 5. Bg5 {[%clk 0:02:53.3]}
5... Ne4 {[%clk 0:02:44.9]} 6. Bf4 {[%clk 0:02:50.9]} 6... Nc6 {[%clk
0:02:31.7]} 7. hxg4 {[%clk 0:02:47.5]} 7... Nb4 {[%clk 0:02:31]} 8. Qb3 {[%clk
0:02:45.7]} 8... e6 {[%clk 0:02:21.5]} 9. f3 {[%clk 0:02:36.5]} 9... Bd6 {[%clk
0:02:14.3]} 10. Bxd6 {[%clk 0:02:09.9]} 10... Qxd6 {[%clk 0:01:48.5]} 11. fxe4
{[%clk 0:02:09.9]} 11... O-O {[%clk 0:01:48.8]} 12. e5 {[%clk 0:02:04.6]} 12...
Qe7 {[%clk 0:01:49.2]} 13. Nf3 {[%clk 0:02:03.1]} 13... c5 {[%clk 0:01:47.3]}
14. c3 {[%clk 0:02:03.5]} 14... Nc6 {[%clk 0:01:46.6]} 15. Nbd2 {[%clk
0:01:55.4]} 15... cxd4 {[%clk 0:01:47.7]} 16. cxd4 {[%clk 0:01:55.4]} 16... Bd7
{[%clk 0:01:48.9]} 17. O-O-O {[%clk 0:01:35.7]} 17... a5 {[%clk 0:01:47]} 18.
Kb1 {[%clk 0:01:33]} 18... a4 {[%clk 0:01:45.8]} 19. Qd3 {[%clk 0:01:34.4]}
19... g6 {[%clk 0:01:45.6]} 20. a3 {[%clk 0:01:35.9]} 20... b5 {[%clk
0:01:45.6]} 21. e4 {[%clk 0:01:16.8]} 21... b4 {[%clk 0:01:39.3]} 22. Bg2 {[%clk
0:01:13.7]} 22... Rab8 {[%clk 0:01:38.3]} 23. Ka1 {[%clk 0:01:13.7]} 23... bxa3
{[%clk 0:01:36.5]} 24. Qxa3 {[%clk 0:01:15.6]} 24... Nb4 {[%clk 0:01:36.7]} 25.
Rc1 {[%clk 0:01:13.3]} 25... Rfc8 {[%clk 0:01:34.8]} 26. Kb1 {[%clk 0:00:47.4]}
26... Bb5 {[%clk 0:01:11.8]} 27. Rxc8+ {[%clk 0:00:36.9]} 27... Rxc8 {[%clk
0:01:13.7]} 28. Bf1 {[%clk 0:00:35.6]} 28... Bc6 {[%clk 0:01:15.2]} 29. Bd3
{[%clk 0:00:20]} 29... Rf8 {[%clk 0:01:14.1]} 30. Rc1 {[%clk 0:00:20.2]} 30...
Ba8 {[%clk 0:01:04.5]} 31. Ne1 {[%clk 0:00:18.2]} 31... Rf2 {[%clk 0:01:04]} 32.
Rc8+ {[%clk 0:00:06.1]} 32... Kg7 {[%clk 0:00:54.3]} 33. Qc3 {[%clk 0:00:08]}
33... Bc6 {[%clk 0:00:44.4]} 34. Nc2 {[%clk 0:00:06.1]} 34... Nxd3 {[%clk
0:00:39.5]} 35. Qxd3 {[%clk 0:00:06.3]} 35... Qb7 {[%clk 0:00:32.4]} 36. Rd8
{[%clk 0:00:06.9]} 36... dxe4 {[%clk 0:00:24.4]} 37. Qc3 {[%clk 0:00:08.3]}
37... Rg2 {[%clk 0:00:19]} 38. Nb4 {[%clk 0:00:09.5]} 38... Bd5 {[%clk
0:00:16.9]} 39. Nxd5 {[%clk 0:00:05.1]} 39... exd5 {[%clk 0:00:15.6]} 40. e6
{[%clk 0:00:02.1]} 40... a3 {[%clk 0:00:16.5]} 0-1